{"text_format":"1","workbook":"xlsx","n_sheets":7,"sheets":["Lisez-moi","Eaux","Glissement","Chute","Avalanche","Cockpit","Tableau"],"not_rendered":{"charts":29,"images":3,"macros":1,"external_links":0,"defined_names":1,"comments":0,"pivot_tables":0},"unopened":[],"bounds":{"document_bytes":16777216,"sheet_cells":100000,"rows_first":2000,"rows_last":500,"rows_between":2000,"halvings":0,"cell_chars":16384,"cell_head_chars":4096},"cells_cut":0,"cells_raw":0,"read":"whole","date_system":"1900"}

{"sheet":"Lisez-moi","index":0,"n_rows":0,"n_cols":0,"rows_kept":0,"cut":false,"hidden":false,"merged":[]}

{"sheet":"Eaux","index":1,"n_rows":147,"n_cols":28,"rows_kept":147,"cut":false,"hidden":false,"merged":[]}
["Processus principal Eaux"]
[]
["BIEN À PROTÉGER ",null,null,null,null,"EXPOSITION (dans un secteur de danger ou de danger indicatif)",null,null,null,null,null,null,null,null,"EXPOSITION (par scénario de base)",null,null,null,null,null,"RISQUE individuel",null,"RISQUE collectif"]
[]
[null,null,null,null,null,null,null,null,null,null,null,null,null,null,null,null,null,null,null,null,"Risque individuel de décès",null,"Risque monétarisé"]
[]
[null,null,null,null,null,"total",null,"par secteur",null,"par degré de danger",null,null,null,null,"par probabilité et intensité",null,null,null,null,null,"Nombre des personnes r > 10-5",null,"Ampleur des dommages Awj par scénario de base [CHF]",null,null,null,null,"Risque [CHF/a]"]
[]
[null,null,null,null,null,null,null,null,null,"rouge","bleu","jaune","jaune-blanc",null,null,"trentennal","centennal","tricentennal","extrême",null,null,null,"trentennal","centennal","tricentennal","extrême"]
[null,"Population",null,null,null,null,null,"dans un secteur de danger ",null,"[nb]","[nb]","[nb]","[nb]",null,"faible",0,0,0,0,null,0,null,0,0,0,0,null,0]
[null,"résidante",null,null,null,null,null,0,null,0,0,0,0,null,"moyenne",0,0,0,0]
[null,"total [nb]",null,null,null,"total [nb]",null,null,null,null,null,null,null,null,"forte",0,0,0,0]
[null,0,null,null,null,0,null,"dans un secteur de danger indicatif"]
[null,null,null,null,null,null,null,0]
[]
["Personnes",null,null,null,null,null,null,null,null,"rouge","bleu","jaune","jaune-blanc",null,null,"trentennal","centennal","tricentennal","extrême",null,null,null,"trentennal","centennal","tricentennal","extrême"]
[null,"Employés",null,null,null,null,null,"dans un secteur de danger ",null,"[nb]","[nb]","[nb]","[nb]",null,"faible",0,0,0,0,null,0,null,0,0,0,0,null,0]
[null,"total [nb]",null,null,null,null,null,0,null,0,0,0,0,null,"moyenne",0,0,0,0]
[null,null,null,null,null,"total [nb]",null,null,null,null,null,null,null,null,"forte",0,0,0,0]
[null,0,null,null,null,0,null,"dans un secteur de danger indicatif"]
[null,null,null,null,null,null,null,0]
[]
[null,null,null,null,null,null,null,null,null,"rouge","bleu","jaune","jaune-/blanc",null,null,"trentennal","centennal","tricentennal","extrême",null,null,null,"trentennal","centennal","tricentennal","extrême"]
["Biens d’une","Bâtiments",null,"habitation",null,null,null,"dans un secteur de danger ",null,"[m2]","[m2]","[m2]","[m2]",null,"faible",0,0,0,0,null,null,null,0,0,0,0,null,0]
["valeur","total [m2]",null,"total [m2]",null,"total [m2]",null,0,null,0,0,0,0,null,"moyenne",0,0,0,0]
["notable",0,null,0,null,0,null,0,null,null,null,null,null,null,"forte",0,0,0,0]
[null,"total [nb]",null,"total [nb]",null,"total [nb]",null,"dans un secteur de danger indicatif"]
[null,0,null,0,null,0,null,0]
[null,null,null,null,null,null,null,0]
[null,null,null,null,null,null,null,null,null,"rouge","bleu","jaune","jaune-blanc",null,null,"trentennal","centennal","tricentennal","extrême",null,null,null,"trentennal","centennal","tricentennal","extrême"]
[null,null,null,"travail",null,null,null,"dans un secteur de danger ",null,"[m2]","[m2]","[m2]","[m2]",null,"faible",0,0,0,0,null,null,null,0,0,0,0,null,0]
[null,null,null,"total [m2]",null,"total [m2]",null,0,null,0,0,0,0,null,"moyenne",0,0,0,0]
[null,null,null,0,null,0,null,0,null,null,null,null,null,null,"forte",0,0,0,0]
[null,null,null,"total [nb]",null,"total [nb]",null,"dans un secteur de danger indicatif"]
[null,null,null,0,null,0,null,0]
[null,null,null,null,null,null,null,0]
[null,null,null,null,null,null,null,null,null,"rouge","bleu","jaune","jaune-blanc",null,null,"trentennal","centennal","tricentennal","extrême",null,null,null,"trentennal","centennal","tricentennal","extrême"]
[null,null,null,"mixte",null,null,null,"dans un secteur de danger ",null,"[m2]","[m2]","[m2]","[m2]",null,"faible",0,0,0,0,null,null,null,0,0,0,0,null,0]
[null,null,null,"total [m2]",null,"total [m2]",null,0,null,0,0,0,0,null,"moyenne",0,0,0,0]
[null,null,null,0,null,0,null,0,null,null,null,null,null,null,"forte",0,0,0,0]
[null,null,null,"total [nb]",null,"total [nb]",null,"dans un secteur de danger indicatif"]
[null,null,null,0,null,0,null,0]
[null,null,null,null,null,null,null,0]
[null,null,null,null,null,null,null,null,null,"rouge","bleu","jaune","jaune-blanc",null,null,"trentennal","centennal","tricentennal","extrême",null,null,null,"trentennal","centennal","tricentennal","extrême"]
[null,null,null,"autres",null,null,null,"dans un secteur de danger ",null,"[m2]","[m2]","[m2]","[m2]",null,"faible",0,0,0,0,null,null,null,0,0,0,0,null,0]
[null,null,null,"total [m2]",null,"total [m2]",null,0,null,0,0,0,0,null,"moyenne",0,0,0,0]
[null,null,null,0,null,0,null,0,null,null,null,null,null,null,"forte",0,0,0,0]
[null,null,null,"total [nb]",null,"total [nb]",null,"dans un secteur de danger indicatif"]
[null,null,null,0,null,0,null,0]
[null,null,null,null,null,null,null,0]
[]
[null,"Routes",null,"propriétaire",null,null,null,"dans un secteur de danger "]
[null,"total [m]",null,"conféderation",null,null,null,0]
[null,0,null,"total [m]",null,"total [m]"]
[null,null,null,0,null,0,null,"dans un secteur de danger indicatif"]
[null,null,null,null,null,null,null,0]
[]
[]
[null,null,null,"propriétaire",null,null,null,"dans un secteur de danger "]
[null,null,null,"canton",null,null,null,0]
[null,null,null,"total [m]",null,"total [m]"]
[null,null,null,0,null,0,null,"dans un secteur de danger indicatif"]
[null,null,null,null,null,null,null,0]
[]
[]
[null,null,null,"propriétaire",null,null,null,"dans un secteur de danger "]
[null,null,null,"commune",null,null,null,0]
[null,null,null,"total [m]",null,"total [m]"]
[null,null,null,0,null,0,null,"dans un secteur de danger indicatif"]
[null,null,null,null,null,null,null,0]
[]
[]
[null,"Chemins",null,"voie normale",null,null,null,"dans un secteur de danger "]
[null,"de fer",null,null,null,null,null,0]
[null,"total [m]",null,"total [m]",null,"total [m]"]
[null,0,null,0,null,0,null,"dans un secteur de danger indicatif"]
[null,null,null,null,null,null,null,0]
[]
[]
[null,null,null,"voie étroite ",null,null,null,"dans un secteur de danger "]
[null,null,null,null,null,null,null,0]
[null,null,null,"total [m]",null,"total [m]"]
[null,null,null,0,null,0,null,"dans un secteur de danger indicatif"]
[null,null,null,null,null,null,null,0]
[]
[]
[null,null,null,"voie étroite ",null,null,null,"dans un secteur de danger "]
[null,null,null,"et voie",null,null,null,0]
[null,null,null,"normale",null,"total [m]"]
[null,null,null,"total [m]",null,0,null,"dans un secteur de danger indicatif"]
[null,null,null,0,null,null,null,0]
[]
[]
[null,"Biens",null,null,null,null,null,"dans un secteur de danger "]
[null,"culturels",null,null,null,null,null,0]
[null,"total [nb]",null,null,null,"total [nb]"]
[null,0,null,null,null,0,null,"dans un secteur de danger indicatif"]
[null,null,null,null,null,null,null,0]
[]
[]
[null,"Zones à",null,"habitation",null,null,null,"dans un secteur de danger "]
[null,"bâtir",null,"total [m2]",null,null,null,0]
[null,"total [m2]",null,0,null,"total [m2]"]
[null,0,null,null,null,0,null,"dans un secteur de danger indicatif"]
[null,null,null,null,null,null,null,0]
[]
[]
[null,null,null,"travail",null,null,null,"dans un secteur de danger "]
[null,null,null,"total [m2]",null,null,null,0]
[null,null,null,0,null,"total [m2]"]
[null,null,null,null,null,0,null,"dans un secteur de danger indicatif"]
[null,null,null,null,null,null,null,0]
[]
[]
[null,null,null,"mixte",null,null,null,"dans un secteur de danger "]
[null,null,null,"total [m2]",null,null,null,0]
[null,null,null,0,null,"total [m2]"]
[null,null,null,null,null,0,null,"dans un secteur de danger indicatif"]
[null,null,null,null,null,null,null,0]
[]
[]
[null,null,null,"autres",null,null,null,"dans un secteur de danger "]
[null,null,null,"total [m2]",null,null,null,0]
[null,null,null,0,null,"total [m2]"]
[null,null,null,null,null,0,null,"dans un secteur de danger indicatif"]
[null,null,null,null,null,null,null,0]
[]
[]
[null,"Ressources",null,null,null,null,null,"dans un secteur de danger "]
[null,"vitales",null,null,null,null,null,0]
[null,"Sol",null,null,null,"total [m2]"]
[null,"total [m2]",null,null,null,0,null,"dans un secteur de danger indicatif"]
[null,0,null,null,null,null,null,0]
[]
[]
[null,"Ressources",null,null,null,null,null,"dans un secteur de danger "]
[null,"vitales",null,null,null,null,null,0]
[null,"Eaux",null,null,null,"total [m2]"]
[null,"total [m2]",null,null,null,0,null,"dans un secteur de danger indicatif"]
[null,0,null,null,null,null,null,0]
[]
[]
[null,"Objets",null,null,null,null,null,"dans un secteur de danger "]
[null,"spéciaux",null,null,null,null,null,0]
[null,"total [nb]",null,null,null,"total [nb]"]
[null,0,null,null,null,0,null,"dans un secteur de danger indicatif"]
[null,null,null,null,null,null,null,0]

{"sheet":"Glissement","index":2,"n_rows":147,"n_cols":28,"rows_kept":147,"cut":false,"hidden":false,"merged":[]}
["Processus principal Glissement"]
[]
["BIEN À PROTÉGER ",null,null,null,null,"EXPOSITION (dans un secteur de danger ou de danger indicatif)",null,null,null,null,null,null,null,null,"EXPOSITION (par scénario de base)",null,null,null,null,null,"RISQUE individuel",null,"RISQUE collectif"]
[]
[null,null,null,null,null,null,null,null,null,null,null,null,null,null,null,null,null,null,null,null,"Risque individuel de décès",null,"Risque monétarisé"]
[]
[null,null,null,null,null,"total",null,"par secteur",null,"par degré de danger",null,null,null,null,"par probabilité et intensité",null,null,null,null,null,"Nombre des personnes r > 10-5",null,"Ampleur des dommages Awj par scénario de base [CHF]",null,null,null,null,"Risque [CHF/a]"]
[]
[null,null,null,null,null,null,null,null,null,"rouge","bleu","jaune","jaune-blanc",null,null,"trentennal","centennal","tricentennal","extrême",null,null,null,"trentennal","centennal","tricentennal","extrême"]
[null,"Population",null,null,null,null,null,"dans un secteur de danger ",null,"[nb]","[nb]","[nb]","[nb]",null,"faible",0,0,0,0,null,0,null,0,0,0,0,null,0]
[null,"résidante",null,null,null,null,null,0,null,0,0,0,0,null,"moyenne",0,0,0,0]
[null,"total [nb]",null,null,null,"total [nb]",null,null,null,null,null,null,null,null,"forte",0,0,0,0]
[null,0,null,null,null,0,null,"dans un secteur de danger indicatif"]
[null,null,null,null,null,null,null,0]
[]
["Personnes",null,null,null,null,null,null,null,null,"rouge","bleu","jaune","jaune-blanc",null,null,"trentennal","centennal","tricentennal","extrême",null,null,null,"trentennal","centennal","tricentennal","extrême"]
[null,"Employés",null,null,null,null,null,"dans un secteur de danger ",null,"[nb]","[nb]","[nb]","[nb]",null,"faible",0,0,0,0,null,0,null,0,0,0,0,null,0]
[null,"total [nb]",null,null,null,null,null,0,null,0,0,0,0,null,"moyenne",0,0,0,0]
[null,null,null,null,null,"total [nb]",null,null,null,null,null,null,null,null,"forte",0,0,0,0]
[null,0,null,null,null,0,null,"dans un secteur de danger indicatif"]
[null,null,null,null,null,null,null,0]
[]
[null,null,null,null,null,null,null,null,null,"rouge","bleu","jaune","jaune-/blanc",null,null,"trentennal","centennal","tricentennal","extrême",null,null,null,"trentennal","centennal","tricentennal","extrême"]
["Biens d’une","Bâtiments",null,"habitation",null,null,null,"dans un secteur de danger ",null,"[m2]","[m2]","[m2]","[m2]",null,"faible",0,0,0,0,null,null,null,0,0,0,0,null,0]
["valeur","total [m2]",null,"total [m2]",null,"total [m2]",null,0,null,0,0,0,0,null,"moyenne",0,0,0,0]
["notable",0,null,0,null,0,null,0,null,null,null,null,null,null,"forte",0,0,0,0]
[null,"total [nb]",null,"total [nb]",null,"total [nb]",null,"dans un secteur de danger indicatif"]
[null,0,null,0,null,0,null,0]
[null,null,null,null,null,null,null,0]
[null,null,null,null,null,null,null,null,null,"rouge","bleu","jaune","jaune-blanc",null,null,"trentennal","centennal","tricentennal","extrême",null,null,null,"trentennal","centennal","tricentennal","extrême"]
[null,null,null,"travail",null,null,null,"dans un secteur de danger ",null,"[m2]","[m2]","[m2]","[m2]",null,"faible",0,0,0,0,null,null,null,0,0,0,0,null,0]
[null,null,null,"total [m2]",null,"total [m2]",null,0,null,0,0,0,0,null,"moyenne",0,0,0,0]
[null,null,null,0,null,0,null,0,null,null,null,null,null,null,"forte",0,0,0,0]
[null,null,null,"total [nb]",null,"total [nb]",null,"dans un secteur de danger indicatif"]
[null,null,null,0,null,0,null,0]
[null,null,null,null,null,null,null,0]
[null,null,null,null,null,null,null,null,null,"rouge","bleu","jaune","jaune-blanc",null,null,"trentennal","centennal","tricentennal","extrême",null,null,null,"trentennal","centennal","tricentennal","extrême"]
[null,null,null,"mixte",null,null,null,"dans un secteur de danger ",null,"[m2]","[m2]","[m2]","[m2]",null,"faible",0,0,0,0,null,null,null,0,0,0,0,null,0]
[null,null,null,"total [m2]",null,"total [m2]",null,0,null,0,0,0,0,null,"moyenne",0,0,0,0]
[null,null,null,0,null,0,null,0,null,null,null,null,null,null,"forte",0,0,0,0]
[null,null,null,"total [nb]",null,"total [nb]",null,"dans un secteur de danger indicatif"]
[null,null,null,0,null,0,null,0]
[null,null,null,null,null,null,null,0]
[null,null,null,null,null,null,null,null,null,"rouge","bleu","jaune","jaune-blanc",null,null,"trentennal","centennal","tricentennal","extrême",null,null,null,"trentennal","centennal","tricentennal","extrême"]
[null,null,null,"autres",null,null,null,"dans un secteur de danger ",null,"[m2]","[m2]","[m2]","[m2]",null,"faible",0,0,0,0,null,null,null,0,0,0,0,null,0]
[null,null,null,"total [m2]",null,"total [m2]",null,0,null,0,0,0,0,null,"moyenne",0,0,0,0]
[null,null,null,0,null,0,null,0,null,null,null,null,null,null,"forte",0,0,0,0]
[null,null,null,"total [nb]",null,"total [nb]",null,"dans un secteur de danger indicatif"]
[null,null,null,0,null,0,null,0]
[null,null,null,null,null,null,null,0]
[]
[null,"Routes",null,"propriétaire",null,null,null,"dans un secteur de danger "]
[null,"total [m]",null,"conféderation",null,null,null,0]
[null,0,null,"total [m]",null,"total [m]"]
[null,null,null,0,null,0,null,"dans un secteur de danger indicatif"]
[null,null,null,null,null,null,null,0]
[]
[]
[null,null,null,"propriétaire",null,null,null,"dans un secteur de danger "]
[null,null,null,"canton",null,null,null,0]
[null,null,null,"total [m]",null,"total [m]"]
[null,null,null,0,null,0,null,"dans un secteur de danger indicatif"]
[null,null,null,null,null,null,null,0]
[]
[]
[null,null,null,"propriétaire",null,null,null,"dans un secteur de danger "]
[null,null,null,"commune",null,null,null,0]
[null,null,null,"total [m]",null,"total [m]"]
[null,null,null,0,null,0,null,"dans un secteur de danger indicatif"]
[null,null,null,null,null,null,null,0]
[]
[]
[null,"Chemins",null,"voie normale",null,null,null,"dans un secteur de danger "]
[null,"de fer",null,null,null,null,null,0]
[null,"total [m]",null,"total [m]",null,"total [m]"]
[null,0,null,0,null,0,null,"dans un secteur de danger indicatif"]
[null,null,null,null,null,null,null,0]
[]
[]
[null,null,null,"voie étroite ",null,null,null,"dans un secteur de danger "]
[null,null,null,null,null,null,null,0]
[null,null,null,"total [m]",null,"total [m]"]
[null,null,null,0,null,0,null,"dans un secteur de danger indicatif"]
[null,null,null,null,null,null,null,0]
[]
[]
[null,null,null,"voie étroite ",null,null,null,"dans un secteur de danger "]
[null,null,null,"et voie",null,null,null,0]
[null,null,null,"normale",null,"total [m]"]
[null,null,null,"total [m]",null,0,null,"dans un secteur de danger indicatif"]
[null,null,null,0,null,null,null,0]
[]
[]
[null,"Biens",null,null,null,null,null,"dans un secteur de danger "]
[null,"culturels",null,null,null,null,null,0]
[null,"total [nb]",null,null,null,"total [nb]"]
[null,0,null,null,null,0,null,"dans un secteur de danger indicatif"]
[null,null,null,null,null,null,null,0]
[]
[]
[null,"Zones à",null,"habitation",null,null,null,"dans un secteur de danger "]
[null,"bâtir",null,"total [m2]",null,null,null,0]
[null,"total [m2]",null,0,null,"total [m2]"]
[null,0,null,null,null,0,null,"dans un secteur de danger indicatif"]
[null,null,null,null,null,null,null,0]
[]
[]
[null,null,null,"travail",null,null,null,"dans un secteur de danger "]
[null,null,null,"total [m2]",null,null,null,0]
[null,null,null,0,null,"total [m2]"]
[null,null,null,null,null,0,null,"dans un secteur de danger indicatif"]
[null,null,null,null,null,null,null,0]
[]
[]
[null,null,null,"mixte",null,null,null,"dans un secteur de danger "]
[null,null,null,"total [m2]",null,null,null,0]
[null,null,null,0,null,"total [m2]"]
[null,null,null,null,null,0,null,"dans un secteur de danger indicatif"]
[null,null,null,null,null,null,null,0]
[]
[]
[null,null,null,"autres",null,null,null,"dans un secteur de danger "]
[null,null,null,"total [m2]",null,null,null,0]
[null,null,null,0,null,"total [m2]"]
[null,null,null,null,null,0,null,"dans un secteur de danger indicatif"]
[null,null,null,null,null,null,null,0]
[]
[]
[null,"Ressources",null,null,null,null,null,"dans un secteur de danger "]
[null,"vitales",null,null,null,null,null,0]
[null,"Sol",null,null,null,"total [m2]"]
[null,"total [m2]",null,null,null,0,null,"dans un secteur de danger indicatif"]
[null,0,null,null,null,null,null,0]
[]
[]
[null,"Ressources",null,null,null,null,null,"dans un secteur de danger "]
[null,"vitales",null,null,null,null,null,0]
[null,"Eaux",null,null,null,"total [m2]"]
[null,"total [m2]",null,null,null,0,null,"dans un secteur de danger indicatif"]
[null,0,null,null,null,null,null,0]
[]
[]
[null,"Objets",null,null,null,null,null,"dans un secteur de danger "]
[null,"spéciaux",null,null,null,null,null,0]
[null,"total [nb]",null,null,null,"total [nb]"]
[null,0,null,null,null,0,null,"dans un secteur de danger indicatif"]
[null,null,null,null,null,null,null,0]

{"sheet":"Chute","index":3,"n_rows":147,"n_cols":28,"rows_kept":147,"cut":false,"hidden":false,"merged":[]}
["Processus principal Chute"]
[]
["BIEN À PROTÉGER ",null,null,null,null,"EXPOSITION (dans un secteur de danger ou de danger indicatif)",null,null,null,null,null,null,null,null,"EXPOSITION (par scénario de base)",null,null,null,null,null,"RISQUE individuel",null,"RISQUE collectif"]
[]
[null,null,null,null,null,null,null,null,null,null,null,null,null,null,null,null,null,null,null,null,"Risque individuel de décès",null,"Risque monétarisé"]
[]
[null,null,null,null,null,"total",null,"par secteur",null,"par degré de danger",null,null,null,null,"par probabilité et intensité",null,null,null,null,null,"Nombre des personnes r > 10-5",null,"Ampleur des dommages Awj par scénario de base [CHF]",null,null,null,null,"Risque [CHF/a]"]
[]
[null,null,null,null,null,null,null,null,null,"rouge","bleu","jaune","jaune-blanc",null,null,"trentennal","centennal","tricentennal","extrême",null,null,null,"trentennal","centennal","tricentennal","extrême"]
[null,"Population",null,null,null,null,null,"dans un secteur de danger ",null,"[nb]","[nb]","[nb]","[nb]",null,"faible",0,0,0,0,null,0,null,0,0,0,0,null,0]
[null,"résidante",null,null,null,null,null,0,null,0,0,0,0,null,"moyenne",0,0,0,0]
[null,"total [nb]",null,null,null,"total [nb]",null,null,null,null,null,null,null,null,"forte",0,0,0,0]
[null,0,null,null,null,0,null,"dans un secteur de danger indicatif"]
[null,null,null,null,null,null,null,0]
[]
["Personnes",null,null,null,null,null,null,null,null,"rouge","bleu","jaune","jaune-blanc",null,null,"trentennal","centennal","tricentennal","extrême",null,null,null,"trentennal","centennal","tricentennal","extrême"]
[null,"Employés",null,null,null,null,null,"dans un secteur de danger ",null,"[nb]","[nb]","[nb]","[nb]",null,"faible",0,0,0,0,null,0,null,0,0,0,0,null,0]
[null,"total [nb]",null,null,null,null,null,0,null,0,0,0,0,null,"moyenne",0,0,0,0]
[null,null,null,null,null,"total [nb]",null,null,null,null,null,null,null,null,"forte",0,0,0,0]
[null,0,null,null,null,0,null,"dans un secteur de danger indicatif"]
[null,null,null,null,null,null,null,0]
[]
[null,null,null,null,null,null,null,null,null,"rouge","bleu","jaune","jaune-/blanc",null,null,"trentennal","centennal","tricentennal","extrême",null,null,null,"trentennal","centennal","tricentennal","extrême"]
["Biens d’une","Bâtiments",null,"habitation",null,null,null,"dans un secteur de danger ",null,"[m2]","[m2]","[m2]","[m2]",null,"faible",0,0,0,0,null,null,null,0,0,0,0,null,0]
["valeur","total [m2]",null,"total [m2]",null,"total [m2]",null,0,null,0,0,0,0,null,"moyenne",0,0,0,0]
["notable",0,null,0,null,0,null,0,null,null,null,null,null,null,"forte",0,0,0,0]
[null,"total [nb]",null,"total [nb]",null,"total [nb]",null,"dans un secteur de danger indicatif"]
[null,0,null,0,null,0,null,0]
[null,null,null,null,null,null,null,0]
[null,null,null,null,null,null,null,null,null,"rouge","bleu","jaune","jaune-blanc",null,null,"trentennal","centennal","tricentennal","extrême",null,null,null,"trentennal","centennal","tricentennal","extrême"]
[null,null,null,"travail",null,null,null,"dans un secteur de danger ",null,"[m2]","[m2]","[m2]","[m2]",null,"faible",0,0,0,0,null,null,null,0,0,0,0,null,0]
[null,null,null,"total [m2]",null,"total [m2]",null,0,null,0,0,0,0,null,"moyenne",0,0,0,0]
[null,null,null,0,null,0,null,0,null,null,null,null,null,null,"forte",0,0,0,0]
[null,null,null,"total [nb]",null,"total [nb]",null,"dans un secteur de danger indicatif"]
[null,null,null,0,null,0,null,0]
[null,null,null,null,null,null,null,0]
[null,null,null,null,null,null,null,null,null,"rouge","bleu","jaune","jaune-blanc",null,null,"trentennal","centennal","tricentennal","extrême",null,null,null,"trentennal","centennal","tricentennal","extrême"]
[null,null,null,"mixte",null,null,null,"dans un secteur de danger ",null,"[m2]","[m2]","[m2]","[m2]",null,"faible",0,0,0,0,null,null,null,0,0,0,0,null,0]
[null,null,null,"total [m2]",null,"total [m2]",null,0,null,0,0,0,0,null,"moyenne",0,0,0,0]
[null,null,null,0,null,0,null,0,null,null,null,null,null,null,"forte",0,0,0,0]
[null,null,null,"total [nb]",null,"total [nb]",null,"dans un secteur de danger indicatif"]
[null,null,null,0,null,0,null,0]
[null,null,null,null,null,null,null,0]
[null,null,null,null,null,null,null,null,null,"rouge","bleu","jaune","jaune-blanc",null,null,"trentennal","centennal","tricentennal","extrême",null,null,null,"trentennal","centennal","tricentennal","extrême"]
[null,null,null,"autres",null,null,null,"dans un secteur de danger ",null,"[m2]","[m2]","[m2]","[m2]",null,"faible",0,0,0,0,null,null,null,0,0,0,0,null,0]
[null,null,null,"total [m2]",null,"total [m2]",null,0,null,0,0,0,0,null,"moyenne",0,0,0,0]
[null,null,null,0,null,0,null,0,null,null,null,null,null,null,"forte",0,0,0,0]
[null,null,null,"total [nb]",null,"total [nb]",null,"dans un secteur de danger indicatif"]
[null,null,null,0,null,0,null,0]
[null,null,null,null,null,null,null,0]
[]
[null,"Routes",null,"propriétaire",null,null,null,"dans un secteur de danger "]
[null,"total [m]",null,"conféderation",null,null,null,0]
[null,0,null,"total [m]",null,"total [m]"]
[null,null,null,0,null,0,null,"dans un secteur de danger indicatif"]
[null,null,null,null,null,null,null,0]
[]
[]
[null,null,null,"propriétaire",null,null,null,"dans un secteur de danger "]
[null,null,null,"canton",null,null,null,0]
[null,null,null,"total [m]",null,"total [m]"]
[null,null,null,0,null,0,null,"dans un secteur de danger indicatif"]
[null,null,null,null,null,null,null,0]
[]
[]
[null,null,null,"propriétaire",null,null,null,"dans un secteur de danger "]
[null,null,null,"commune",null,null,null,0]
[null,null,null,"total [m]",null,"total [m]"]
[null,null,null,0,null,0,null,"dans un secteur de danger indicatif"]
[null,null,null,null,null,null,null,0]
[]
[]
[null,"Chemins",null,"voie normale",null,null,null,"dans un secteur de danger "]
[null,"de fer",null,null,null,null,null,0]
[null,"total [m]",null,"total [m]",null,"total [m]"]
[null,0,null,0,null,0,null,"dans un secteur de danger indicatif"]
[null,null,null,null,null,null,null,0]
[]
[]
[null,null,null,"voie étroite ",null,null,null,"dans un secteur de danger "]
[null,null,null,null,null,null,null,0]
[null,null,null,"total [m]",null,"total [m]"]
[null,null,null,0,null,0,null,"dans un secteur de danger indicatif"]
[null,null,null,null,null,null,null,0]
[]
[]
[null,null,null,"voie étroite ",null,null,null,"dans un secteur de danger "]
[null,null,null,"et voie",null,null,null,0]
[null,null,null,"normale",null,"total [m]"]
[null,null,null,"total [m]",null,0,null,"dans un secteur de danger indicatif"]
[null,null,null,0,null,null,null,0]
[]
[]
[null,"Biens",null,null,null,null,null,"dans un secteur de danger "]
[null,"culturels",null,null,null,null,null,0]
[null,"total [nb]",null,null,null,"total [nb]"]
[null,0,null,null,null,0,null,"dans un secteur de danger indicatif"]
[null,null,null,null,null,null,null,0]
[]
[]
[null,"Zones à",null,"habitation",null,null,null,"dans un secteur de danger "]
[null,"bâtir",null,"total [m2]",null,null,null,0]
[null,"total [m2]",null,0,null,"total [m2]"]
[null,0,null,null,null,0,null,"dans un secteur de danger indicatif"]
[null,null,null,null,null,null,null,0]
[]
[]
[null,null,null,"travail",null,null,null,"dans un secteur de danger "]
[null,null,null,"total [m2]",null,null,null,0]
[null,null,null,0,null,"total [m2]"]
[null,null,null,null,null,0,null,"dans un secteur de danger indicatif"]
[null,null,null,null,null,null,null,0]
[]
[]
[null,null,null,"mixte",null,null,null,"dans un secteur de danger "]
[null,null,null,"total [m2]",null,null,null,0]
[null,null,null,0,null,"total [m2]"]
[null,null,null,null,null,0,null,"dans un secteur de danger indicatif"]
[null,null,null,null,null,null,null,0]
[]
[]
[null,null,null,"autres",null,null,null,"dans un secteur de danger "]
[null,null,null,"total [m2]",null,null,null,0]
[null,null,null,0,null,"total [m2]"]
[null,null,null,null,null,0,null,"dans un secteur de danger indicatif"]
[null,null,null,null,null,null,null,0]
[]
[]
[null,"Ressources",null,null,null,null,null,"dans un secteur de danger "]
[null,"vitales",null,null,null,null,null,0]
[null,"Sol",null,null,null,"total [m2]"]
[null,"total [m2]",null,null,null,0,null,"dans un secteur de danger indicatif"]
[null,0,null,null,null,null,null,0]
[]
[]
[null,"Ressources",null,null,null,null,null,"dans un secteur de danger "]
[null,"vitales",null,null,null,null,null,0]
[null,"Eaux",null,null,null,"total [m2]"]
[null,"total [m2]",null,null,null,0,null,"dans un secteur de danger indicatif"]
[null,0,null,null,null,null,null,0]
[]
[]
[null,"Objets",null,null,null,null,null,"dans un secteur de danger "]
[null,"spéciaux",null,null,null,null,null,0]
[null,"total [nb]",null,null,null,"total [nb]"]
[null,0,null,null,null,0,null,"dans un secteur de danger indicatif"]
[null,null,null,null,null,null,null,0]

{"sheet":"Avalanche","index":4,"n_rows":147,"n_cols":28,"rows_kept":147,"cut":false,"hidden":false,"merged":[]}
["Processus principal Avalanche"]
[]
["BIEN À PROTÉGER ",null,null,null,null,"EXPOSITION (dans un secteur de danger ou de danger indicatif)",null,null,null,null,null,null,null,null,"EXPOSITION (par scénario de base)",null,null,null,null,null,"RISQUE individuel",null,"RISQUE collectif"]
[]
[null,null,null,null,null,null,null,null,null,null,null,null,null,null,null,null,null,null,null,null,"Risque individuel de décès",null,"Risque monétarisé"]
[]
[null,null,null,null,null,"total",null,"par secteur",null,"par degré de danger",null,null,null,null,"par probabilité et intensité",null,null,null,null,null,"Nombre des personnes r > 10-5",null,"Ampleur des dommages Awj par scénario de base [CHF]",null,null,null,null,"Risque [CHF/a]"]
[]
[null,null,null,null,null,null,null,null,null,"rouge","bleu","jaune","jaune-blanc",null,null,"trentennal","centennal","tricentennal","extrême",null,null,null,"trentennal","centennal","tricentennal","extrême"]
[null,"Population",null,null,null,null,null,"dans un secteur de danger ",null,"[nb]","[nb]","[nb]","[nb]",null,"faible",0,0,0,0,null,0,null,0,0,0,0,null,0]
[null,"résidante",null,null,null,null,null,0,null,0,0,0,0,null,"moyenne",0,0,0,0]
[null,"total [nb]",null,null,null,"total [nb]",null,null,null,null,null,null,null,null,"forte",0,0,0,0]
[null,0,null,null,null,0,null,"dans un secteur de danger indicatif"]
[null,null,null,null,null,null,null,0]
[]
["Personnes",null,null,null,null,null,null,null,null,"rouge","bleu","jaune","jaune-blanc",null,null,"trentennal","centennal","tricentennal","extrême",null,null,null,"trentennal","centennal","tricentennal","extrême"]
[null,"Employés",null,null,null,null,null,"dans un secteur de danger ",null,"[nb]","[nb]","[nb]","[nb]",null,"faible",0,0,0,0,null,0,null,0,0,0,0,null,0]
[null,"total [nb]",null,null,null,null,null,0,null,0,0,0,0,null,"moyenne",0,0,0,0]
[null,null,null,null,null,"total [nb]",null,null,null,null,null,null,null,null,"forte",0,0,0,0]
[null,0,null,null,null,0,null,"dans un secteur de danger indicatif"]
[null,null,null,null,null,null,null,0]
[]
[null,null,null,null,null,null,null,null,null,"rouge","bleu","jaune","jaune-/blanc",null,null,"trentennal","centennal","tricentennal","extrême",null,null,null,"trentennal","centennal","tricentennal","extrême"]
["Biens d’une","Bâtiments",null,"habitation",null,null,null,"dans un secteur de danger ",null,"[m2]","[m2]","[m2]","[m2]",null,"faible",0,0,0,0,null,null,null,0,0,0,0,null,0]
["valeur","total [m2]",null,"total [m2]",null,"total [m2]",null,0,null,0,0,0,0,null,"moyenne",0,0,0,0]
["notable",0,null,0,null,0,null,0,null,null,null,null,null,null,"forte",0,0,0,0]
[null,"total [nb]",null,"total [nb]",null,"total [nb]",null,"dans un secteur de danger indicatif"]
[null,0,null,0,null,0,null,0]
[null,null,null,null,null,null,null,0]
[null,null,null,null,null,null,null,null,null,"rouge","bleu","jaune","jaune-blanc",null,null,"trentennal","centennal","tricentennal","extrême",null,null,null,"trentennal","centennal","tricentennal","extrême"]
[null,null,null,"travail",null,null,null,"dans un secteur de danger ",null,"[m2]","[m2]","[m2]","[m2]",null,"faible",0,0,0,0,null,null,null,0,0,0,0,null,0]
[null,null,null,"total [m2]",null,"total [m2]",null,0,null,0,0,0,0,null,"moyenne",0,0,0,0]
[null,null,null,0,null,0,null,0,null,null,null,null,null,null,"forte",0,0,0,0]
[null,null,null,"total [nb]",null,"total [nb]",null,"dans un secteur de danger indicatif"]
[null,null,null,0,null,0,null,0]
[null,null,null,null,null,null,null,0]
[null,null,null,null,null,null,null,null,null,"rouge","bleu","jaune","jaune-blanc",null,null,"trentennal","centennal","tricentennal","extrême",null,null,null,"trentennal","centennal","tricentennal","extrême"]
[null,null,null,"mixte",null,null,null,"dans un secteur de danger ",null,"[m2]","[m2]","[m2]","[m2]",null,"faible",0,0,0,0,null,null,null,0,0,0,0,null,0]
[null,null,null,"total [m2]",null,"total [m2]",null,0,null,0,0,0,0,null,"moyenne",0,0,0,0]
[null,null,null,0,null,0,null,0,null,null,null,null,null,null,"forte",0,0,0,0]
[null,null,null,"total [nb]",null,"total [nb]",null,"dans un secteur de danger indicatif"]
[null,null,null,0,null,0,null,0]
[null,null,null,null,null,null,null,0]
[null,null,null,null,null,null,null,null,null,"rouge","bleu","jaune","jaune-blanc",null,null,"trentennal","centennal","tricentennal","extrême",null,null,null,"trentennal","centennal","tricentennal","extrême"]
[null,null,null,"autres",null,null,null,"dans un secteur de danger ",null,"[m2]","[m2]","[m2]","[m2]",null,"faible",0,0,0,0,null,null,null,0,0,0,0,null,0]
[null,null,null,"total [m2]",null,"total [m2]",null,0,null,0,0,0,0,null,"moyenne",0,0,0,0]
[null,null,null,0,null,0,null,0,null,null,null,null,null,null,"forte",0,0,0,0]
[null,null,null,"total [nb]",null,"total [nb]",null,"dans un secteur de danger indicatif"]
[null,null,null,0,null,0,null,0]
[null,null,null,null,null,null,null,0]
[]
[null,"Routes",null,"propriétaire",null,null,null,"dans un secteur de danger "]
[null,"total [m]",null,"conféderation",null,null,null,0]
[null,0,null,"total [m]",null,"total [m]"]
[null,null,null,0,null,0,null,"dans un secteur de danger indicatif"]
[null,null,null,null,null,null,null,0]
[]
[]
[null,null,null,"propriétaire",null,null,null,"dans un secteur de danger "]
[null,null,null,"canton",null,null,null,0]
[null,null,null,"total [m]",null,"total [m]"]
[null,null,null,0,null,0,null,"dans un secteur de danger indicatif"]
[null,null,null,null,null,null,null,0]
[]
[]
[null,null,null,"propriétaire",null,null,null,"dans un secteur de danger "]
[null,null,null,"commune",null,null,null,0]
[null,null,null,"total [m]",null,"total [m]"]
[null,null,null,0,null,0,null,"dans un secteur de danger indicatif"]
[null,null,null,null,null,null,null,0]
[]
[]
[null,"Chemins",null,"voie normale",null,null,null,"dans un secteur de danger "]
[null,"de fer",null,null,null,null,null,0]
[null,"total [m]",null,"total [m]",null,"total [m]"]
[null,0,null,0,null,0,null,"dans un secteur de danger indicatif"]
[null,null,null,null,null,null,null,0]
[]
[]
[null,null,null,"voie étroite ",null,null,null,"dans un secteur de danger "]
[null,null,null,null,null,null,null,0]
[null,null,null,"total [m]",null,"total [m]"]
[null,null,null,0,null,0,null,"dans un secteur de danger indicatif"]
[null,null,null,null,null,null,null,0]
[]
[]
[null,null,null,"voie étroite ",null,null,null,"dans un secteur de danger "]
[null,null,null,"et voie",null,null,null,0]
[null,null,null,"normale",null,"total [m]"]
[null,null,null,"total [m]",null,0,null,"dans un secteur de danger indicatif"]
[null,null,null,0,null,null,null,0]
[]
[]
[null,"Biens",null,null,null,null,null,"dans un secteur de danger "]
[null,"culturels",null,null,null,null,null,0]
[null,"total [nb]",null,null,null,"total [nb]"]
[null,0,null,null,null,0,null,"dans un secteur de danger indicatif"]
[null,null,null,null,null,null,null,0]
[]
[]
[null,"Zones à",null,"habitation",null,null,null,"dans un secteur de danger "]
[null,"bâtir",null,"total [m2]",null,null,null,0]
[null,"total [m2]",null,0,null,"total [m2]"]
[null,0,null,null,null,0,null,"dans un secteur de danger indicatif"]
[null,null,null,null,null,null,null,0]
[]
[]
[null,null,null,"travail",null,null,null,"dans un secteur de danger "]
[null,null,null,"total [m2]",null,null,null,0]
[null,null,null,0,null,"total [m2]"]
[null,null,null,null,null,0,null,"dans un secteur de danger indicatif"]
[null,null,null,null,null,null,null,0]
[]
[]
[null,null,null,"mixte",null,null,null,"dans un secteur de danger "]
[null,null,null,"total [m2]",null,null,null,0]
[null,null,null,0,null,"total [m2]"]
[null,null,null,null,null,0,null,"dans un secteur de danger indicatif"]
[null,null,null,null,null,null,null,0]
[]
[]
[null,null,null,"autres",null,null,null,"dans un secteur de danger "]
[null,null,null,"total [m2]",null,null,null,0]
[null,null,null,0,null,"total [m2]"]
[null,null,null,null,null,0,null,"dans un secteur de danger indicatif"]
[null,null,null,null,null,null,null,0]
[]
[]
[null,"Ressources",null,null,null,null,null,"dans un secteur de danger "]
[null,"vitales",null,null,null,null,null,0]
[null,"Sol",null,null,null,"total [m2]"]
[null,"total [m2]",null,null,null,0,null,"dans un secteur de danger indicatif"]
[null,0,null,null,null,null,null,0]
[]
[]
[null,"Ressources",null,null,null,null,null,"dans un secteur de danger "]
[null,"vitales",null,null,null,null,null,0]
[null,"Eaux",null,null,null,"total [m2]"]
[null,"total [m2]",null,null,null,0,null,"dans un secteur de danger indicatif"]
[null,0,null,null,null,null,null,0]
[]
[]
[null,"Objets",null,null,null,null,null,"dans un secteur de danger "]
[null,"spéciaux",null,null,null,null,null,0]
[null,"total [nb]",null,null,null,"total [nb]"]
[null,0,null,null,null,0,null,"dans un secteur de danger indicatif"]
[null,null,null,null,null,null,null,0]

{"sheet":"Cockpit","index":5,"n_rows":176,"n_cols":20,"rows_kept":176,"cut":false,"hidden":false,"merged":[[5,5,5,7],[45,5,45,7],[85,5,85,7],[125,5,125,7]]}
[]
[null,null,null,null,null,"Processus principal EAUX"]
[]
[null,"BIEN À PROTÉGER",null,null,null,"EXPOSITION",null,null,null,null,"RISQUE"]
[]
[null,null,null,null,null,"selon le degré de danger ou le secteur de danger indicatif\nde danger indicatif",null,null,null,null,"risque individuel de décès",null,null,null,null,"moyenne annuelle des dommages attendus en CHF"]
[null,"Population"]
[null,"résidante","total ",null,null,null,null,"habitantes et habitants",{"$f":"Eaux!$B$13","v":0},null,null,null,"habitantes et habitants",{"$f":"Eaux!$B$13","v":0}]
[null,null,{"$f":"Eaux!$B$13","v":0},null,null,null,null,"soit dans un secteur de",null,{"$f":"MAX(I11:I15,I23:I27,I51:I55,I63:I67,I91:I95,I103:I107,I131:I135,I143:I147)","v":0},null,null,"soit pour ceux dont"]
[null,null,"habitantes et",null,null,null,null,null,null,{"$f":"ROUNDUP((J9/10^(LEN(INT(J9))-1)),0)*10^(LEN(INT(J9))-1)","v":0},null,null,"le risque individuel de décès est"]
[null,null,"habitants",null,null,null,null,"danger élevé",{"$f":"Eaux!$J$11","v":0},{"$f":"$J$10-I11","v":0}]
[null,null,null,null,null,null,null,"danger moyen",{"$f":"Eaux!$K$11","v":0},{"$f":"$J$10-I12","v":0},null,null,"supérieur à 10-5\n",{"$f":"Eaux!$U$10","v":0}]
[null,null,null,null,null,null,null,"danger faible",{"$f":"Eaux!$L$11","v":0},0,null,null,"inférieur à 10-5",{"$f":"SUM(I11:I14)-N12","v":0},null,null,null,"Personnes",{"$f":"Eaux!$AB$10+Eaux!$AB$17","v":0}]
[null,null,null,null,null,null,null,"danger résiduel",{"$f":"Eaux!$M$11","v":0},0,null,null,"non exposé",{"$f":"N8-N12-N13","v":0},null,null,null,"soit pour des (%)"]
[null,null,null,null,null,null,null,"dans un secteur de danger indicatif",{"$f":"Eaux!$H$14","v":0},0]
[null,null,null,null,null,null,null,null,null,null,null,null,null,null,null,null,null,"évènements fréquents",{"$f":"100*(Tableau!$E$5/Tableau!$I$5)","v":{"$error":"#DIV/0!"}},{"$f":"Tableau!$E$5","v":0}]
[null,null,null,null,null,null,null,null,null,null,null,null,null,null,null,null,null,"évènements de fréquence moyenne",{"$f":"100*(Tableau!$F$5/Tableau!$I$5)","v":{"$error":"#DIV/0!"}},{"$f":"Tableau!$F$5","v":0}]
[null,null,null,null,null,null,null,null,null,null,null,null,null,null,null,null,null,"évènements rares",{"$f":"100*(Tableau!$G$5/Tableau!$I$5)","v":{"$error":"#DIV/0!"}},{"$f":"Tableau!$G$5","v":0}]
[null,null,null,null,null,null,null,null,null,null,null,null,null,null,null,null,null,"évènements très rares",{"$f":"100*(Tableau!$H$5/Tableau!$I$5)","v":{"$error":"#DIV/0!"}},{"$f":"Tableau!$H$5","v":0}]
[null,"Employés","total ",null,null,null,null,"employés",{"$f":"Eaux!$B$20","v":0},null,null,null,"employés",{"$f":"Eaux!$B$20","v":0}]
[null,null,{"$f":"Eaux!$B$20","v":0},null,null,null,null,"soit dans un secteur de",null,null,null,null,"soit pour ceux dont"]
[null,null,"employés",null,null,null,null,null,null,null,null,null,"le risque individuel de décès est"]
[null,null,null,null,null,null,null,"danger élevé",{"$f":"Eaux!$J$18","v":0},{"$f":"$J$10-I23","v":0}]
[null,null,null,null,null,null,null,"danger moyen",{"$f":"Eaux!$K$18","v":0},{"$f":"$J$10-I24","v":0},null,null,"supérieur à 10-5\n",{"$f":"Eaux!$U$17","v":0}]
[null,null,null,null,null,null,null,"danger faible",{"$f":"Eaux!$L$18","v":0},0,null,null,"inférieur à 10-5",{"$f":"SUM(I23:I26)-N24","v":0}]
[null,null,null,null,null,null,null,"danger résiduel",{"$f":"Eaux!$M$18","v":0},0,null,null,"non exposé",{"$f":"N20-N24-N25","v":0}]
[null,null,null,null,null,null,null,"dans un secteur de danger indicatif",{"$f":"Eaux!$H$21","v":0},0]
[]
[]
[]
[]
[null,"Bâtiments","total ",null,null,null,null,"m2 de surface au sol",{"$f":"Eaux!$B$26","v":0},null,null,null,null,null,null,null,null,"Bâtiments",{"$f":"SUM(Eaux!$AB$24,Eaux!$AB$31,Eaux!$AB$38,Eaux!$AB$45)","v":0}]
[null,null,{"$f":"Eaux!$B$26","v":0},"m2",null,null,null,"soit dans un secteur de",null,{"$f":"MAX(I35:I39,I75:I79,I115:I119,I155:I159)","v":0},null,null,null,null,null,null,null,"soit pour des (%)"]
[null,null,"surface au sol",null,null,null,null,null,null,{"$f":"ROUNDUP((J33/10^(LEN(INT(J33))-1)),0)*10^(LEN(INT(J33))-1)","v":0}]
[null,null,null,null,null,null,null,"danger élevé",{"$f":"Eaux!$J$25+Eaux!$J$32+Eaux!$J$39+Eaux!$J$46","v":0},{"$f":"$J$34-I35","v":0},null,null,null,null,null,null,null,"évènements fréquents",{"$f":"100*(Tableau!$E$10/Tableau!$I$10)","v":{"$error":"#DIV/0!"}},{"$f":"Tableau!$E$10","v":0}]
[null,null,{"$f":"Eaux!$B$28","v":0},"bâtiments",null,null,null,"danger moyen",{"$f":"Eaux!$K$25+Eaux!$K$32+Eaux!$K$39+Eaux!$K$46","v":0},{"$f":"$J$34-I36","v":0},null,null,null,null,null,null,null,"évènements de fréquence moyenne",{"$f":"100*(Tableau!$F$10/Tableau!$I$10)","v":{"$error":"#DIV/0!"}},{"$f":"Tableau!$F$10","v":0}]
[null,null,null,null,null,null,null,"danger faible",{"$f":"Eaux!$L$25+Eaux!$L$32+Eaux!$L$39+Eaux!$L$46","v":0},0,null,null,null,null,null,null,null,"évènements rares",{"$f":"100*(Tableau!$G$10/Tableau!$I$10)","v":{"$error":"#DIV/0!"}},{"$f":"Tableau!$G$10","v":0}]
[null,null,null,null,null,null,null,"danger résiduel",{"$f":"Eaux!$M$25+Eaux!$M$32+Eaux!$M$39+Eaux!$M$46","v":0},0,null,null,null,null,null,null,null,"évènements très rares",{"$f":"100*(Tableau!$H$10/Tableau!$I$10)","v":{"$error":"#DIV/0!"}},{"$f":"Tableau!$H$10","v":0}]
[null,null,null,null,null,null,null,"dans un secteur de danger indicatif",{"$f":"Eaux!$H$28+Eaux!$H$35+Eaux!$H$42+Eaux!$H$49","v":0},0]
[]
[]
[null,null,null,null,null,"Processus principal GLISSEMENT"]
[]
[null,"BIEN À PROTÉGER",null,null,null,"EXPOSITION",null,null,null,null,"RISQUE"]
[]
[null,null,null,null,null,"selon le degré de danger ou le secteur de danger indicatif\nde danger indicatif",null,null,null,null,"risque individuel de décès",null,null,null,null,"moyenne annuelle des dommages attendus en CHF"]
[null,"Population"]
[null,"résidante","total ",null,null,null,null,"habitantes et habitants",{"$f":"Glissement!$B$13","v":0},null,null,null,"habitantes et habitants",{"$f":"Glissement!$B$13","v":0}]
[null,null,{"$f":"Glissement!$B$13","v":0},null,null,null,null,"soit dans un secteur de",null,null,null,null,"soit pour ceux dont"]
[null,null,"habitantes et",null,null,null,null,null,null,null,null,null,"le risque individuel de décès est"]
[null,null,"habitants",null,null,null,null,"danger élevé",{"$f":"Glissement!$J$11","v":0},{"$f":"$J$10-I51","v":0}]
[null,null,null,null,null,null,null,"danger moyen",{"$f":"Glissement!$K$11","v":0},{"$f":"$J$10-I52","v":0},null,null,"supérieur à 10-5\n",{"$f":"Glissement!$U$10","v":0}]
[null,null,null,null,null,null,null,"danger faible",{"$f":"Glissement!$L$11","v":0},0,null,null,"inférieur à 10-5",{"$f":"SUM(I51:I54)-N52","v":0},null,null,null,"Personnes",{"$f":"Glissement!$AB$10+Glissement!$AB$17","v":0}]
[null,null,null,null,null,null,null,"danger résiduel",{"$f":"Glissement!$M$11","v":0},0,null,null,"non exposé",{"$f":"N48-N52-N53","v":0},null,null,null,"soit pour des (%)"]
[null,null,null,null,null,null,null,"dans un secteur de danger indicatif",{"$f":"Glissement!$H$14","v":0},0]
[null,null,null,null,null,null,null,null,null,null,null,null,null,null,null,null,null,"évènements fréquents",{"$f":"100*(Tableau!$E$14/Tableau!$I$14)","v":{"$error":"#DIV/0!"}},{"$f":"Tableau!$E$14","v":0}]
[null,null,null,null,null,null,null,null,null,null,null,null,null,null,null,null,null,"évènements de fréquence moyenne",{"$f":"100*(Tableau!$F$14/Tableau!$I$14)","v":{"$error":"#DIV/0!"}},{"$f":"Tableau!$F$14","v":0}]
[null,null,null,null,null,null,null,null,null,null,null,null,null,null,null,null,null,"évènements rares",{"$f":"100*(Tableau!$G$14/Tableau!$I$14)","v":{"$error":"#DIV/0!"}},{"$f":"Tableau!$G$14","v":0}]
[null,null,null,null,null,null,null,null,null,null,null,null,null,null,null,null,null,"évènements très rares",{"$f":"100*(Tableau!$H$14/Tableau!$I$14)","v":{"$error":"#DIV/0!"}},{"$f":"Tableau!$H$14","v":0}]
[null,"Employés","total ",null,null,null,null,"employés",{"$f":"Glissement!$B$20","v":0},null,null,null,"employés",{"$f":"Glissement!$B$20","v":0}]
[null,null,{"$f":"Glissement!$B$20","v":0},null,null,null,null,"soit dans un secteur de",null,null,null,null,"soit pour ceux dont"]
[null,null,"employés",null,null,null,null,null,null,null,null,null,"le risque individuel de décès est"]
[null,null,null,null,null,null,null,"danger élevé",{"$f":"Glissement!$J$18","v":0},{"$f":"$J$10-I63","v":0}]
[null,null,null,null,null,null,null,"danger moyen",{"$f":"Glissement!$K$18","v":0},{"$f":"$J$10-I64","v":0},null,null,"supérieur à 10-5\n",{"$f":"Glissement!$U$17","v":0}]
[null,null,null,null,null,null,null,"danger faible",{"$f":"Glissement!$L$18","v":0},0,null,null,"inférieur à 10-5",{"$f":"SUM(I63:I66)-N64","v":0}]
[null,null,null,null,null,null,null,"danger résiduel",{"$f":"Glissement!$M$18","v":0},0,null,null,"non exposé",{"$f":"N60-N64-N65","v":0}]
[null,null,null,null,null,null,null,"dans un secteur de danger indicatif",{"$f":"Glissement!$H$21","v":0},0]
[]
[]
[]
[]
[null,"Bâtiments","total ",null,null,null,null,"m2 de surface au sol",{"$f":"Glissement!$B$26","v":0},null,null,null,null,null,null,null,null,"Bâtiments",{"$f":"SUM(Glissement!$AB$24,Glissement!$AB$31,Glissement!$AB$38,Glissement!$AB$45)","v":0}]
[null,null,{"$f":"Glissement!$B$26","v":0},"m2",null,null,null,"soit dans un secteur de",null,null,null,null,null,null,null,null,null,"soit pour des (%)"]
[null,null,"surface au sol"]
[null,null,null,null,null,null,null,"danger élevé",{"$f":"Glissement!$J$25+Glissement!$J$32+Glissement!$J$39+Glissement!$J$46","v":0},{"$f":"$J$34-I75","v":0},null,null,null,null,null,null,null,"évènements fréquents",{"$f":"100*(Tableau!$E$19/Tableau!$I$19)","v":{"$error":"#DIV/0!"}},{"$f":"Tableau!$E$19","v":0}]
[null,null,{"$f":"Glissement!$B$28","v":0},"bâtiments",null,null,null,"danger moyen",{"$f":"Glissement!$K$25+Glissement!$K$32+Glissement!$K$39+Glissement!$K$46","v":0},{"$f":"$J$34-I76","v":0},null,null,null,null,null,null,null,"évènements de fréquence moyenne",{"$f":"100*(Tableau!$F$19/Tableau!$I$19)","v":{"$error":"#DIV/0!"}},{"$f":"Tableau!$F$19","v":0}]
[null,null,null,null,null,null,null,"danger faible",{"$f":"Glissement!$L$25+Glissement!$L$32+Glissement!$L$39+Glissement!$L$46","v":0},0,null,null,null,null,null,null,null,"évènements rares",{"$f":"100*(Tableau!$G$19/Tableau!$I$19)","v":{"$error":"#DIV/0!"}},{"$f":"Tableau!$G$19","v":0}]
[null,null,null,null,null,null,null,"danger résiduel",{"$f":"Glissement!$M$25+Glissement!$M$32+Glissement!$M$39+Glissement!$M$46","v":0},0,null,null,null,null,null,null,null,"évènements très rares",{"$f":"100*(Tableau!$H$19/Tableau!$I$19)","v":{"$error":"#DIV/0!"}},{"$f":"Tableau!$H$19","v":0}]
[null,null,null,null,null,null,null,"dans un secteur de danger indicatif",{"$f":"Glissement!$H$28+Glissement!$H$35+Glissement!$H$42+Glissement!$H$49","v":0},0]
[]
[]
[null,null,null,null,null,"Processus principal CHUTE"]
[]
[null,"BIEN À PROTÉGER",null,null,null,"EXPOSITION",null,null,null,null,"RISQUE"]
[]
[null,null,null,null,null,"selon le degré de danger ou le secteur de danger indicatif\nde danger indicatif",null,null,null,null,"risque individuel de décès",null,null,null,null,"moyenne annuelle des dommages attendus en CHF"]
[null,"Population"]
[null,"résidante","total ",null,null,null,null,"habitantes et habitants",{"$f":"Chute!$B$13","v":0},null,null,null,"habitantes et habitants",{"$f":"Chute!$B$13","v":0}]
[null,null,{"$f":"Chute!$B$13","v":0},null,null,null,null,"soit dans un secteur de",null,null,null,null,"soit pour ceux dont"]
[null,null,"habitantes et",null,null,null,null,null,null,null,null,null,"le risque individuel de décès est"]
[null,null,"habitants",null,null,null,null,"danger élevé",{"$f":"Chute!$J$11","v":0},{"$f":"$J$10-I91","v":0}]
[null,null,null,null,null,null,null,"danger moyen",{"$f":"Chute!$K$11","v":0},{"$f":"$J$10-I92","v":0},null,null,"supérieur à 10-5\n",{"$f":"Chute!$U$10","v":0}]
[null,null,null,null,null,null,null,"danger faible",{"$f":"Chute!$L$11","v":0},0,null,null,"inférieur à 10-5",{"$f":"SUM(I91:I94)-N92","v":0},null,null,null,"Personnes",{"$f":"Chute!$AB$10+Chute!$AB$17","v":0}]
[null,null,null,null,null,null,null,"danger résiduel",{"$f":"Chute!$M$11","v":0},0,null,null,"non exposé",{"$f":"N88-N92-N93","v":0},null,null,null,"soit pour des (%)"]
[null,null,null,null,null,null,null,"dans un secteur de danger indicatif",{"$f":"Chute!$H$14","v":0},0]
[null,null,null,null,null,null,null,null,null,null,null,null,null,null,null,null,null,"évènements fréquents",{"$f":"100*(Tableau!$E$23/Tableau!$I$23)","v":{"$error":"#DIV/0!"}},{"$f":"Tableau!$E$23","v":0}]
[null,null,null,null,null,null,null,null,null,null,null,null,null,null,null,null,null,"évènements de fréquence moyenne",{"$f":"100*(Tableau!$F$23/Tableau!$I$23)","v":{"$error":"#DIV/0!"}},{"$f":"Tableau!$F$23","v":0}]
[null,null,null,null,null,null,null,null,null,null,null,null,null,null,null,null,null,"évènements rares",{"$f":"100*(Tableau!$G$23/Tableau!$I$23)","v":{"$error":"#DIV/0!"}},{"$f":"Tableau!$G$23","v":0}]
[null,null,null,null,null,null,null,null,null,null,null,null,null,null,null,null,null,"évènements très rares",{"$f":"100*(Tableau!$H$23/Tableau!$I$23)","v":{"$error":"#DIV/0!"}},{"$f":"Tableau!$G$23","v":0}]
[null,"Employés","total ",null,null,null,null,"employés",{"$f":"Chute!$B$20","v":0},null,null,null,"employés",{"$f":"Chute!$B$20","v":0}]
[null,null,{"$f":"Chute!$B$20","v":0},null,null,null,null,"soit dans un secteur de",null,null,null,null,"soit pour ceux dont"]
[null,null,"employés",null,null,null,null,null,null,null,null,null,"le risque individuel de décès est"]
[null,null,null,null,null,null,null,"danger élevé",{"$f":"Chute!$J$18","v":0},{"$f":"$J$10-I103","v":0}]
[null,null,null,null,null,null,null,"danger moyen",{"$f":"Chute!$K$18","v":0},{"$f":"$J$10-I104","v":0},null,null,"supérieur à 10-5\n",{"$f":"Chute!$U$17","v":0}]
[null,null,null,null,null,null,null,"danger faible",{"$f":"Chute!$L$18","v":0},0,null,null,"inférieur à 10-5",{"$f":"SUM(I103:I106)-N104","v":0}]
[null,null,null,null,null,null,null,"danger résiduel",{"$f":"Chute!$M$18","v":0},0,null,null,"non exposé",{"$f":"N100-N104-N105","v":0}]
[null,null,null,null,null,null,null,"dans un secteur de danger indicatif",{"$f":"Chute!$H$21","v":0},0]
[]
[]
[]
[]
[null,"Bâtiments","total ",null,null,null,null,"m2 de surface au sol",{"$f":"Chute!$B$26","v":0},null,null,null,null,null,null,null,null,"Bâtiments",{"$f":"SUM(Chute!$AB$24,Chute!$AB$31,Chute!$AB$38,Chute!$AB$45)","v":0}]
[null,null,{"$f":"Chute!$B$26","v":0},"m2",null,null,null,"soit dans un secteur de",null,null,null,null,null,null,null,null,null,"soit pour des (%)"]
[null,null,"surface au sol"]
[null,null,null,null,null,null,null,"danger élevé",{"$f":"Chute!$J$25+Chute!$J$32+Chute!$J$39+Chute!$J$46","v":0},{"$f":"$J$34-I115","v":0},null,null,null,null,null,null,null,"évènements fréquents",{"$f":"100*(Tableau!$E$28/Tableau!$I$28)","v":{"$error":"#DIV/0!"}},{"$f":"Tableau!$E$28","v":0}]
[null,null,{"$f":"Chute!$B$28","v":0},"bâtiments",null,null,null,"danger moyen",{"$f":"Chute!$K$25+Chute!$K$32+Chute!$K$39+Chute!$K$46","v":0},{"$f":"$J$34-I116","v":0},null,null,null,null,null,null,null,"évènements de fréquence moyenne",{"$f":"100*(Tableau!$F$28/Tableau!$I$28)","v":{"$error":"#DIV/0!"}},{"$f":"Tableau!$F$28","v":0}]
[null,null,null,null,null,null,null,"danger faible",{"$f":"Chute!$L$25+Chute!$L$32+Chute!$L$39+Chute!$L$46","v":0},0,null,null,null,null,null,null,null,"évènements rares",{"$f":"100*(Tableau!$G$28/Tableau!$I$28)","v":{"$error":"#DIV/0!"}},{"$f":"Tableau!$G$28","v":0}]
[null,null,null,null,null,null,null,"danger résiduel",{"$f":"Chute!$M$25+Chute!$M$32+Chute!$M$39+Chute!$M$46","v":0},0,null,null,null,null,null,null,null,"évènements très rares",{"$f":"100*(Tableau!$H$28/Tableau!$I$28)","v":{"$error":"#DIV/0!"}},{"$f":"Tableau!$H$28","v":0}]
[null,null,null,null,null,null,null,"dans un secteur de danger indicatif",{"$f":"Chute!$H$28+Chute!$H$35+Chute!$H$42+Chute!$H$49","v":0},0]
[]
[]
[null,null,null,null,null,"Processus principal AVALANCHE"]
[]
[null,"BIEN À PROTÉGER",null,null,null,"EXPOSITION",null,null,null,null,"RISQUE"]
[]
[null,null,null,null,null,"selon le degré de danger ou le secteur de danger indicatif\nde danger indicatif",null,null,null,null,"risque individuel de décès",null,null,null,null,"moyenne annuelle des dommages attendus en CHF"]
[null,"Population"]
[null,"résidante","total ",null,null,null,null,"habitantes et habitants",{"$f":"Avalanche!$B$13","v":0},null,null,null,"habitantes et habitants",{"$f":"Avalanche!$B$13","v":0}]
[null,null,{"$f":"Avalanche!$B$13","v":0},null,null,null,null,"soit dans un secteur de",null,null,null,null,"soit pour ceux dont"]
[null,null,"habitantes et",null,null,null,null,null,null,null,null,null,"le risque individuel de décès est"]
[null,null,"habitants",null,null,null,null,"danger élevé",{"$f":"Avalanche!$J$11","v":0},{"$f":"$J$10-I131","v":0}]
[null,null,null,null,null,null,null,"danger moyen",{"$f":"Avalanche!$K$11","v":0},{"$f":"$J$10-I132","v":0},null,null,"supérieur à 10-5\n",{"$f":"Avalanche!$U$10","v":0}]
[null,null,null,null,null,null,null,"danger faible",{"$f":"Avalanche!$L$11","v":0},0,null,null,"inférieur à 10-5",{"$f":"SUM(I131:I134)-N132","v":0},null,null,null,"Personnes",{"$f":"Avalanche!$AB$10+Avalanche!$AB$17","v":0}]
[null,null,null,null,null,null,null,"danger résiduel",{"$f":"Avalanche!$M$11","v":0},0,null,null,"non exposé",{"$f":"N128-N132-N133","v":0},null,null,null,"soit pour des (%)"]
[null,null,null,null,null,null,null,"dans un secteur de danger indicatif",{"$f":"Avalanche!$H$14","v":0},0]
[null,null,null,null,null,null,null,null,null,null,null,null,null,null,null,null,null,"évènements fréquents",{"$f":"100*(Tableau!$E$32/Tableau!$I$32)","v":{"$error":"#DIV/0!"}},{"$f":"Tableau!$E$32","v":0}]
[null,null,null,null,null,null,null,null,null,null,null,null,null,null,null,null,null,"évènements de fréquence moyenne",{"$f":"100*(Tableau!$F$32/Tableau!$I$32)","v":{"$error":"#DIV/0!"}},{"$f":"Tableau!$F$32","v":0}]
[null,null,null,null,null,null,null,null,null,null,null,null,null,null,null,null,null,"évènements rares",{"$f":"100*(Tableau!$G$32/Tableau!$I$32)","v":{"$error":"#DIV/0!"}},{"$f":"Tableau!$G$32","v":0}]
[null,null,null,null,null,null,null,null,null,null,null,null,null,null,null,null,null,"évènements très rares",{"$f":"100*(Tableau!$H$32/Tableau!$I$32)","v":{"$error":"#DIV/0!"}},{"$f":"Tableau!$H$32","v":0}]
[null,"Employés","total ",null,null,null,null,"employés",{"$f":"Avalanche!$B$20","v":0},null,null,null,"employés",{"$f":"Avalanche!$B$20","v":0}]
[null,null,{"$f":"Avalanche!$B$20","v":0},null,null,null,null,"soit dans un secteur de",null,null,null,null,"soit pour ceux dont"]
[null,null,"employés",null,null,null,null,null,null,null,null,null,"le risque individuel de décès est"]
[null,null,null,null,null,null,null,"danger élevé",{"$f":"Avalanche!$J$18","v":0},{"$f":"$J$10-I143","v":0}]
[null,null,null,null,null,null,null,"danger moyen",{"$f":"Avalanche!$K$18","v":0},{"$f":"$J$10-I144","v":0},null,null,"supérieur à 10-5\n",{"$f":"Avalanche!$U$17","v":0}]
[null,null,null,null,null,null,null,"danger faible",{"$f":"Avalanche!$L$18","v":0},0,null,null,"inférieur à 10-5",{"$f":"SUM(I143:I146)-N144","v":0}]
[null,null,null,null,null,null,null,"danger résiduel",{"$f":"Avalanche!$M$18","v":0},0,null,null,"non exposé",{"$f":"N140-N144-N145","v":0}]
[null,null,null,null,null,null,null,"dans un secteur de danger indicatif",{"$f":"Avalanche!$H$21","v":0},0]
[]
[]
[]
[]
[null,"Bâtiments","total ",null,null,null,null,"m2 de surface au sol",{"$f":"Avalanche!$B$26","v":0},null,null,null,null,null,null,null,null,"Bâtiments",{"$f":"SUM(Avalanche!$AB$24,Avalanche!$AB$31,Avalanche!$AB$38,Avalanche!$AB$45)","v":0}]
[null,null,{"$f":"Avalanche!$B$26","v":0},"m2",null,null,null,"soit dans un secteur de",null,null,null,null,null,null,null,null,null,"soit pour des (%)"]
[null,null,"surface au sol"]
[null,null,null,null,null,null,null,"danger élevé",{"$f":"Avalanche!$J$25+Avalanche!$J$32+Avalanche!$J$39+Avalanche!$J$46","v":0},{"$f":"$J$34-I155","v":0},null,null,null,null,null,null,null,"évènements fréquents",{"$f":"100*(Tableau!$E$37/Tableau!$I$37)","v":{"$error":"#DIV/0!"}},{"$f":"Tableau!$E$37","v":0}]
[null,null,{"$f":"Avalanche!$B$28","v":0},"bâtiments",null,null,null,"danger moyen",{"$f":"Avalanche!$K$25+Avalanche!$K$32+Avalanche!$K$39+Avalanche!$K$46","v":0},{"$f":"$J$34-I156","v":0},null,null,null,null,null,null,null,"évènements de fréquence moyenne",{"$f":"100*(Tableau!$F$37/Tableau!$I$37)","v":{"$error":"#DIV/0!"}},{"$f":"Tableau!$F$37","v":0}]
[null,null,null,null,null,null,null,"danger faible",{"$f":"Avalanche!$L$25+Avalanche!$L$32+Avalanche!$L$39+Avalanche!$L$46","v":0},0,null,null,null,null,null,null,null,"évènements rares",{"$f":"100*(Tableau!$G$37/Tableau!$I$37)","v":{"$error":"#DIV/0!"}},{"$f":"Tableau!$G$37","v":0}]
[null,null,null,null,null,null,null,"danger résiduel",{"$f":"Avalanche!$M$25+Avalanche!$M$32+Avalanche!$M$39+Avalanche!$M$46","v":0},0,null,null,null,null,null,null,null,"évènements très rares",{"$f":"100*(Tableau!$H$37/Tableau!$I$37)","v":{"$error":"#DIV/0!"}},{"$f":"Tableau!$H$37","v":0}]
[null,null,null,null,null,null,null,"dans un secteur de danger indicatif",{"$f":"Avalanche!$H$28+Avalanche!$H$35+Avalanche!$H$42+Avalanche!$H$49","v":0},0]
[]
[]
[]
[]
[null,null,null,null,null,null,null,null,null,null,"RISQUE TOTAL"]
[]
[null,null,null,null,null,null,null,null,null,null,null,null,null,null,null,"moyenne annuelle des dommages attendus en CHF"]
[]
[]
[]
[null,null,null,null,null,null,null,null,null,null,null,null,null,null,null,null,null,"TOTAL",{"$f":"S13+S32+S53+S72+S93+S112+S133+S152","v":0}]
[null,null,null,null,null,null,null,null,null,null,null,null,null,null,null,null,null,"soit pour des (%)"]
[]
[null,null,null,null,null,null,null,null,null,null,null,null,null,null,null,null,null,"évènements fréquents",{"$f":"100*(Tableau!$E$39/Tableau!$I$39)","v":{"$error":"#DIV/0!"}},{"$f":"Tableau!$E$39","v":0}]
[null,null,null,null,null,null,null,null,null,null,null,null,null,null,null,null,null,"évènements de fréquence moyenne",{"$f":"100*(Tableau!$F$39/Tableau!$I$39)","v":{"$error":"#DIV/0!"}},{"$f":"Tableau!$F$39","v":0}]
[null,null,null,null,null,null,null,null,null,null,null,null,null,null,null,null,null,"évènements rares",{"$f":"100*(Tableau!$G$39/Tableau!$I$39)","v":{"$error":"#DIV/0!"}},{"$f":"Tableau!$G$39","v":0}]
[null,null,null,null,null,null,null,null,null,null,null,null,null,null,null,null,null,"évènements très rares",{"$f":"100*(Tableau!$H$39/Tableau!$I$39)","v":{"$error":"#DIV/0!"}},{"$f":"Tableau!$H$39","v":0}]

{"sheet":"Tableau","index":6,"n_rows":45,"n_cols":15,"rows_kept":45,"cut":false,"hidden":false,"merged":[]}
["Processus principal","Bien à protéger",null,"Nombre de personnes","Risque monétarisé trentennal jusqu'à centennal\n","Risque monétarisé centennal jusqu'à tricentennal\n","Risque monétarisé centennal jusqu'à extrême\n","Risque monétarisé au-dessus extrême\n","Moyenne annuelle des dommages attendus\n\n",null,1,null,"CONTRÔLE",null,"Période de retour, scénario de base extrême "]
[null,null,null,null,null,null,null,null,null,null,2]
["Eaux","Personnes","Population résidente",{"$f":"Eaux!$B$13","v":0},{"$f":"Eaux!$W$10*(1/30-1/100)","v":0},{"$f":"Eaux!$X$10*(1/100-1/300)","v":0},{"$f":"Eaux!$Y$10*(1/300-1/$O$3)","v":0},{"$f":"IF(Eaux!Z10=0,Eaux!Y10*((1/$O$3)-(0)),(Eaux!Z10-0)*((1/$O$3)-(0)))","v":0},{"$f":"SUM(E3:H3)","v":0},null,3,null,null,null,1000]
[null,null,"Employés",{"$f":"Eaux!$B$20","v":0},{"$f":"Eaux!$W$17*(1/30-1/100)","v":0},{"$f":"Eaux!$X$17*(1/100-1/300)","v":0},{"$f":"Eaux!$Y$17*(1/300-1/$O$3)","v":0},{"$f":"IF(Eaux!Z17=0,Eaux!Y17*((1/$O$3)-(0)),(Eaux!Z17-0)*((1/$O$3)-(0)))","v":0},{"$f":"SUM(E4:H4)","v":0},null,4]
[null,null,"Total",null,{"$f":"E3+E4","v":0},{"$f":"F3+F4","v":0},0,0,{"$f":"I3+I4","v":0},null,5,null,{"$f":"Cockpit!S13-Tableau!I5","v":0}]
[null,"Bâtiments","habitation",null,{"$f":"Eaux!$W$24*(1/30-1/100)","v":0},{"$f":"Eaux!$X$24*(1/100-1/300)","v":0},{"$f":"Eaux!$Y$24*(1/300-1/$O$3)","v":0},{"$f":"IF(Eaux!Z24=0,Eaux!Y24*((1/$O$3)-(0)),(Eaux!Z24-0)*((1/$O$3)-(0)))","v":0},{"$f":"SUM(E6:H6)","v":0},null,6]
[null,null,"travail",null,{"$f":"Eaux!$W$31*(1/30-1/100)","v":0},{"$f":"Eaux!$X$31*(1/100-1/300)","v":0},{"$f":"Eaux!$Y$31*(1/300-1/$O$3)","v":0},{"$f":"IF(Eaux!Z31=0,Eaux!Y31*((1/$O$3)-(0)),(Eaux!Z31-0)*((1/$O$3)-(0)))","v":0},{"$f":"SUM(E7:H7)","v":0},null,7]
[null,null,"mixte",null,{"$f":"Eaux!$W$38*(1/30-1/100)","v":0},{"$f":"Eaux!$X$38*(1/100-1/300)","v":0},{"$f":"Eaux!$Y$38*(1/300-1/$O$3)","v":0},{"$f":"IF(Eaux!Z38=0,Eaux!Y38*((1/$O$3)-(0)),(Eaux!Z38-0)*((1/$O$3)-(0)))","v":0},0,null,8]
[null,null,"autres",null,{"$f":"Eaux!$W$45*(1/30-1/100)","v":0},{"$f":"Eaux!$X$45*(1/100-1/300)","v":0},{"$f":"Eaux!$Y$45*(1/300-1/$O$3)","v":0},{"$f":"IF(Eaux!Z45=0,Eaux!Y45*((1/$O$3)-(0)),(Eaux!Z45-0)*((1/$O$3)-(0)))","v":0},0,null,9]
[null,null,"Total",null,{"$f":"SUM(E6:E9)","v":0},{"$f":"SUM(F6:F9)","v":0},0,0,{"$f":"I6+I7+I8+I9","v":0},null,10,null,{"$f":"Cockpit!S32-Tableau!I10","v":0}]
[null,null,null,null,null,null,null,null,null,null,11]
["Glissement","Personnes","Population résidente",{"$f":"Glissement!$B$13","v":0},{"$f":"Glissement!$W$10*(1/30-1/100)","v":0},{"$f":"Glissement!$X$10*(1/100-1/300)","v":0},{"$f":"Glissement!$Y$10*(1/300-1/$O$12)","v":0},{"$f":"IF(Glissement!Z10=0,Glissement!Y10*((1/$O$12)-(0)),(Glissement!Z10-0)*((1/$O$12)-(0)))","v":0},{"$f":"SUM(E12:H12)","v":0},null,12,null,null,null,1000]
[null,null,"Employés",{"$f":"Glissement!$B$20","v":0},{"$f":"Glissement!$W$17*(1/30-1/100)","v":0},{"$f":"Glissement!$X$17*(1/100-1/300)","v":0},{"$f":"Glissement!$Y$17*(1/300-1/$O$12)","v":0},{"$f":"IF(Glissement!Z17=0,Glissement!Y17*((1/$O$12)-(0)),(Glissement!Z17-0)*((1/$O$12)-(0)))","v":0},{"$f":"SUM(E13:H13)","v":0},null,13]
[null,null,"Total",null,{"$f":"E12+E13","v":0},{"$f":"F12+F13","v":0},0,0,{"$f":"I12+I13","v":0},null,14,null,{"$f":"Cockpit!S53-Tableau!I14","v":0}]
[null,"Bâtiments","habitation",null,{"$f":"Glissement!$W$24*(1/30-1/100)","v":0},{"$f":"Glissement!$X$24*(1/100-1/300)","v":0},{"$f":"Glissement!$Y$24*(1/300-1/$O$12)","v":0},{"$f":"IF(Glissement!Z24=0,Glissement!Y24*((1/$O$12)-(0)),(Glissement!Z24-0)*((1/$O$12)-(0)))","v":0},{"$f":"SUM(E15:H15)","v":0},null,15]
[null,null,"travail",null,{"$f":"Glissement!$W$31*(1/30-1/100)","v":0},{"$f":"Glissement!$X$31*(1/100-1/300)","v":0},{"$f":"Glissement!$Y$31*(1/300-1/$O$12)","v":0},{"$f":"IF(Glissement!Z31=0,Glissement!Y31*((1/$O$12)-(0)),(Glissement!Z31-0)*((1/$O$12)-(0)))","v":0},{"$f":"SUM(E16:H16)","v":0},null,16]
[null,null,"mixte",null,{"$f":"Glissement!$W$38*(1/30-1/100)","v":0},{"$f":"Glissement!$X$38*(1/100-1/300)","v":0},{"$f":"Glissement!$Y$38*(1/300-1/$O$12)","v":0},{"$f":"IF(Glissement!Z38=0,Glissement!Y38*((1/$O$12)-(0)),(Glissement!Z38-0)*((1/$O$12)-(0)))","v":0},{"$f":"SUM(E17:H17)","v":0},null,17]
[null,null,"autres",null,{"$f":"Glissement!$W$45*(1/30-1/100)","v":0},{"$f":"Glissement!$X$45*(1/100-1/300)","v":0},{"$f":"Glissement!$Y$45*(1/300-1/$O$12)","v":0},{"$f":"IF(Glissement!Z45=0,Glissement!Y45*((1/$O$12)-(0)),(Glissement!Z45-0)*((1/$O$12)-(0)))","v":0},0,null,18]
[null,null,"Total",null,{"$f":"SUM(E15:E18)","v":0},{"$f":"SUM(F15:F18)","v":0},{"$f":"SUM(G15:G18)","v":0},0,{"$f":"I15+I16+I17+I18","v":0},null,19,null,{"$f":"Cockpit!S72-Tableau!I19","v":0}]
[null,null,null,null,null,null,null,null,null,null,20]
["Chute","Personnes","Population résidente",{"$f":"Chute!$B$13","v":0},{"$f":"Chute!$W$10*(1/30-1/100)","v":0},{"$f":"Chute!$X$10*(1/100-1/300)","v":0},{"$f":"Chute!$Y$10*(1/300-1/$O$21)","v":0},{"$f":"IF(Chute!Z10=0,Chute!Y10*((1/$O$21)-(0)),(Chute!Z10-0)*((1/$O$21)-(0)))","v":0},{"$f":"SUM(E21:H21)","v":0},null,21,null,null,null,1000]
[null,null,"Employés",{"$f":"Chute!$B$20","v":0},{"$f":"Chute!$W$17*(1/30-1/100)","v":0},{"$f":"Chute!$X$17*(1/100-1/300)","v":0},{"$f":"Chute!$Y$17*(1/300-1/$O$21)","v":0},{"$f":"IF(Chute!Z17=0,Chute!Y17*((1/$O$21)-(0)),(Chute!Z17-0)*((1/$O$21)-(0)))","v":0},{"$f":"SUM(E22:H22)","v":0},null,22]
[null,null,"Total",null,{"$f":"E21+E22","v":0},{"$f":"F21+F22","v":0},{"$f":"G21+G22","v":0},0,{"$f":"I21+I22","v":0},null,23,null,{"$f":"Cockpit!S93-Tableau!I23","v":0}]
[null,"Bâtiments","habitation",null,{"$f":"Chute!$W$24*(1/30-1/100)","v":0},{"$f":"Chute!$X$24*(1/100-1/300)","v":0},{"$f":"Chute!$Y$24*(1/300-1/$O$21)","v":0},{"$f":"IF(Chute!Z24=0,Chute!Y24*((1/$O$21)-(0)),(Chute!Z24-0)*((1/$O$21)-(0)))","v":0},{"$f":"SUM(E24:H24)","v":0},null,24]
[null,null,"travail",null,{"$f":"Chute!$W$31*(1/30-1/100)","v":0},{"$f":"Chute!$X$31*(1/100-1/300)","v":0},{"$f":"Chute!$Y$31*(1/300-1/$O$21)","v":0},{"$f":"IF(Chute!Z31=0,Chute!Y31*((1/$O$21)-(0)),(Chute!Z31-0)*((1/$O$21)-(0)))","v":0},{"$f":"SUM(E25:H25)","v":0},null,25]
[null,null,"mixte",null,{"$f":"Chute!$W$38*(1/30-1/100)","v":0},{"$f":"Chute!$X$38*(1/100-1/300)","v":0},{"$f":"Chute!$Y$38*(1/300-1/$O$21)","v":0},{"$f":"IF(Chute!Z38=0,Chute!Y38*((1/$O$21)-(0)),(Chute!Z38-0)*((1/$O$21)-(0)))","v":0},{"$f":"SUM(E26:H26)","v":0},null,26]
[null,null,"autres",null,{"$f":"Chute!$W$45*(1/30-1/100)","v":0},{"$f":"Chute!$X$45*(1/100-1/300)","v":0},{"$f":"Chute!$Y$45*(1/300-1/$O$21)","v":0},{"$f":"IF(Chute!Z45=0,Chute!Y45*((1/$O$21)-(0)),(Chute!Z45-0)*((1/$O$21)-(0)))","v":0},0,null,27]
[null,null,"Total",null,{"$f":"SUM(E24:E27)","v":0},{"$f":"SUM(F24:F27)","v":0},{"$f":"SUM(G24:G27)","v":0},0,{"$f":"I24+I25+I26+I27","v":0},null,28,null,{"$f":"Cockpit!S112-Tableau!I28","v":0}]
[null,null,null,null,null,null,null,null,null,null,29]
["Avalanche","Personnes","Population résidente",{"$f":"Avalanche!$B$13","v":0},{"$f":"Avalanche!$W$10*(1/30-1/100)","v":0},{"$f":"Avalanche!$X$10*(1/100-1/300)","v":0},{"$f":"Avalanche!$Y$10*(1/300-1/$O$30)","v":0},{"$f":"IF(Avalanche!Z10=0,Avalanche!Y10*((1/$O$30)-(0)),(Avalanche!Z10-0)*((1/$O$30)-(0)))","v":0},{"$f":"SUM(E30:H30)","v":0},null,30,null,null,null,1000]
[null,null,"Employés",{"$f":"Avalanche!$B$20","v":0},{"$f":"Avalanche!$W$17*(1/30-1/100)","v":0},{"$f":"Avalanche!$X$17*(1/100-1/300)","v":0},{"$f":"Avalanche!$Y$17*(1/300-1/$O$30)","v":0},{"$f":"IF(Avalanche!Z17=0,Avalanche!Y17*((1/$O$30)-(0)),(Avalanche!Z17-0)*((1/$O$30)-(0)))","v":0},{"$f":"SUM(E31:H31)","v":0},null,31]
[null,null,"Total",null,{"$f":"E30+E31","v":0},{"$f":"F30+F31","v":0},{"$f":"G30+G31","v":0},0,{"$f":"I30+I31","v":0},null,32,null,{"$f":"Cockpit!S133-Tableau!I32","v":0}]
[null,"Bâtiments","habitation",null,{"$f":"Avalanche!$W$24*(1/30-1/100)","v":0},{"$f":"Avalanche!$X$24*(1/100-1/300)","v":0},{"$f":"Avalanche!$Y$24*(1/300-1/$O$30)","v":0},{"$f":"IF(Avalanche!Z24=0,Avalanche!Y24*((1/$O$30)-(0)),(Avalanche!Z24-0)*((1/$O$30)-(0)))","v":0},{"$f":"SUM(E33:H33)","v":0},null,33]
[null,null,"travail",null,{"$f":"Avalanche!$W$31*(1/30-1/100)","v":0},{"$f":"Avalanche!$X$31*(1/100-1/300)","v":0},{"$f":"Avalanche!$Y$31*(1/300-1/$O$30)","v":0},{"$f":"IF(Avalanche!Z31=0,Avalanche!Y31*((1/$O$30)-(0)),(Avalanche!Z31-0)*((1/$O$30)-(0)))","v":0},{"$f":"SUM(E34:H34)","v":0},null,34]
[null,null,"mixte",null,{"$f":"Avalanche!$W$38*(1/30-1/100)","v":0},{"$f":"Avalanche!$X$38*(1/100-1/300)","v":0},{"$f":"Avalanche!$Y$38*(1/300-1/$O$30)","v":0},{"$f":"IF(Avalanche!Z38=0,Avalanche!Y38*((1/$O$30)-(0)),(Avalanche!Z38-0)*((1/$O$30)-(0)))","v":0},{"$f":"SUM(E35:H35)","v":0},null,35]
[null,null,"autres",null,{"$f":"Avalanche!$W$45*(1/30-1/100)","v":0},{"$f":"Avalanche!$X$45*(1/100-1/300)","v":0},{"$f":"Avalanche!$Y$45*(1/300-1/$O$30)","v":0},{"$f":"IF(Avalanche!Z45=0,Avalanche!Y45*((1/$O$30)-(0)),(Avalanche!Z45-0)*((1/$O$30)-(0)))","v":0},0,null,36]
[null,null,"Total",null,{"$f":"SUM(E33:E36)","v":0},{"$f":"SUM(F33:F36)","v":0},{"$f":"SUM(G33:G36)","v":0},0,{"$f":"I33+I34+I35+I36","v":0},null,37,null,{"$f":"Cockpit!S152-Tableau!I37","v":0}]
[null,null,null,null,null,null,null,null,null,null,38]
["Total",null,null,null,{"$f":"E5+E10+E14+E19+E23+E28+E32+E37","v":0},{"$f":"F5+F10+F14+F19+F23+F28+F32+F37","v":0},0,0,{"$f":"I5+I10+I14+I19+I23+I28+I32+I37","v":0},null,39,null,{"$f":"Cockpit!S170-Tableau!I39","v":0}]
[null,null,null,null,null,null,null,null,null,null,40]
["MAX",null,null,{"$f":"MAX(D3,D4,D12,D13,D21,D22)","v":0},null,null,null,null,{"$f":"MAX(I5,I10,I14,I19,I23,I28,I32,I37,I39)","v":0},null,41]
[null,null,null,null,null,null,null,null,null,null,42]
["MAX_GRAPH",null,null,100,null,null,null,null,100,null,43]
[]
[1,2,3,4,5,6,7,8,9]